bitfinex/quotes_ETHUSD_20251218
["timestamp","ask_amount","ask_price","bid_price","bid_amount"]
[1766092493078,2.5179,2811.7,2810.8,4.984504]
[1766092493247,2.5179,2811.7,2811.0,0.405504]
[1766092493869,0.298,2811.8,2811.1,4.579]
[1766092494370,2.5179,2811.7,2811.0,0.405504]
[1766092494552,2.5179,2811.7,2811.0,4.984504]
[1766092494752,2.5179,2811.7,2811.0,5.7302044]
[1766092494957,0.001,2811.8,2811.4,4.579]
[1766092495259,2.5179,2811.7,2810.1,2.4725]
[1766092495446,2.5179,2811.7,2810.0,0.002]
[1766092495447,2.5179,2811.0,2810.0,0.002]
[1766092495646,0.08931283,2811.1,2810.0,0.002]
[1766092495647,3.0929,2810.9,2810.0,0.87188423]
[1766092495876,0.08931283,2811.1,2810.1,2.93688023]
[1766092496078,2.60721283,2811.1,2810.1,2.93688023]
[1766092496247,2.60721283,2811.1,2810.0,0.002]
[1766092496446,2.5179,2810.9,2810.0,0.002]
[1766092496660,2.5179,2810.8,2810.0,0.002]
[1766092497174,0.26072128,2811.0,2810.1,4.579]
[1766092497373,3.0929,2811.0,2810.2,2.4725]
[1766092497572,3.0929,2811.0,2810.2,7.6265]
[1766092497943,2.5179,2811.0,2810.2,7.6265]
[1766092498157,0.55369306,2811.4,2810.4,2.4725]
[1766092498158,2.60721283,2811.4,2810.4,2.4725]
[1766092498481,2.98228023,2811.3,2810.5,4.579]
[1766092498685,3.2382502,2811.3,2810.5,4.579]
[1766092498988,2.98228023,2811.3,2810.5,4.579]
[1766092499489,2.5179,2811.3,2810.5,4.579]
[1766092500280,2.5179,2811.3,2810.2,0.575]
[1766092500485,2.5179,2811.2,2810.0,0.002]
[1766092500659,2.5179,2811.2,2810.0,0.577]
[1766092500660,7.11465262,2811.1,2810.0,0.577]
[1766092500990,2.5179,2810.9,2810.0,0.577]
[1766092501193,0.96325526,2811.0,2810.1,4.579]
[1766092501394,2.4446,2811.1,2810.0,0.577]
[1766092501591,2.4446,2811.1,2810.0,5.3263]
[1766092501920,2.4446,2811.1,2810.1,4.7493]
[1766092502370,2.90898023,2811.1,2810.1,4.7493]
[1766092502571,2.90898023,2811.1,2810.0,0.002]
[1766092502766,2.4446,2810.8,2810.0,0.407504]
[1766092503195,1.03938023,2810.8,2809.2,7.3311]
[1766092503495,2.4446,2810.6,2809.3,1.03938023]
[1766092504201,2.4446,2810.6,2809.2,7.3311]
[1766092504202,2.90898023,2810.6,2809.4,0.575]
[1766092504428,2.4446,2809.9,2808.9,0.002]
[1766092504695,0.08931283,2810.0,2808.8,0.002]
[1766092504696,2.4446,2809.7,2808.8,0.002]
[1766092504870,2.4446,2809.5,2808.8,0.002]
[1766092505903,2.4446,2809.5,2808.5,0.575]
[1766092506770,2.4446,2809.3,2808.5,0.575]
[1766092506997,2.4446,2809.3,2808.5,0.577]
[1766092507194,3.04500789,2809.3,2808.5,0.577]
[1766092508902,4.1600374,2809.3,2808.5,0.577]
[1766092509111,2.4446,2809.2,2808.5,0.577]
[1766092509317,3.0196,2809.2,2808.2,0.405504]
[1766092509530,3.0196,2809.2,2808.0,6.9765]
[1766092509743,2.4446,2809.0,2808.0,5.13898802]
[1766092510041,2.4446,2809.6,2808.2,0.405504]
[1766092510330,2.4446,2809.6,2808.6,5.154804]
[1766092510499,2.4446,2809.6,2808.6,5.729804]
[1766092510692,2.79299802,2809.6,2808.7,0.8311604]
[1766092510895,2.4446,2809.5,2808.6,0.575]
[1766092511223,2.90898023,2809.5,2808.1,0.46438023]
[1766092511429,2.4446,2809.2,2808.1,0.46438023]
[1766092511626,2.4446,2809.0,2808.1,0.46438023]
[1766092511998,2.4446,2809.0,2808.1,7.79548023]
[1766092512232,2.4446,2809.0,2808.2,1.29344683]
[1766092512910,2.37357807,2809.0,2808.2,1.29344683]
[1766092513312,5.93357539,2809.0,2808.2,1.29344683]
[1766092513515,3.55999732,2809.0,2808.2,1.29344683]
[1766092513719,3.55999732,2809.0,2808.1,5.21368023]
[1766092513915,7.11999464,2809.0,2808.1,4.7493]
[1766092514329,3.55999732,2809.0,2808.1,4.7493]
[1766092515035,2.517,2808.9,2808.1,4.7493]
[1766092515636,6.07711663,2808.9,2808.1,4.7493]
[1766092515832,7.09832945,2808.9,2808.1,4.7493]
[1766092516128,2.517,2808.8,2808.0,5.71398802]
[1766092516514,2.517,2808.8,2808.0,10.33448802]
[1766092516831,2.517,2808.8,2808.0,12.76778802]
[1766092517841,2.517,2808.8,2808.1,4.6205]
[1766092518437,2.517,2808.7,2808.0,4.9697]
[1766092518628,2.517,2808.4,2807.6,0.575]
[1766092518934,0.08931283,2808.5,2807.3,4.6225]
[1766092518935,2.517,2808.2,2807.3,4.6225]
[1766092519235,2.517,2808.2,2807.4,0.46638023]
[1766092519441,2.517,2808.2,2807.4,1.27629825]
[1766092520237,2.517,2808.2,2807.4,0.002]
[1766092520563,2.517,2808.2,2807.3,0.002]
[1766092520564,2.517,2808.1,2807.3,0.002]
[1766092520840,2.517,2808.1,2806.9,0.002]
[1766092521059,2.517,2807.9,2806.9,0.002]
[1766092521260,3.69982536,2807.8,2806.9,4.6225]
[1766092521413,3.56063335,2808.5,2806.9,0.002]
[1766092521612,0.46438023,2808.3,2807.5,7.0538]
[1766092522007,0.46438023,2808.3,2807.3,0.405504]
[1766092522008,0.575,2808.4,2807.1,0.002]
[1766092522207,2.517,2808.0,2807.1,0.002]
[1766092522407,2.517,2807.8,2806.9,0.002]
[1766092522840,1.76883032,2807.9,2806.8,0.002]
[1766092522841,2.517,2807.6,2806.8,0.002]
[1766092523150,2.517,2807.4,2806.5,0.405504]
[1766092523455,2.60631283,2807.4,2806.4,0.46438023]
[1766092523611,2.60631283,2807.4,2806.5,0.75201802]
[1766092524107,2.60631283,2807.4,2806.4,0.46438023]
[1766092524312,2.60631283,2807.4,2806.4,5.08488023]
[1766092524646,2.60631283,2807.4,2806.6,4.6205]
[1766092524945,2.60631283,2807.4,2806.6,7.0538]
[1766092525944,2.60631283,2807.4,2806.7,7.0538]
[1766092525945,0.08931283,2807.4,2806.7,7.0538]
[1766092526150,2.517,2807.7,2806.8,5.32588]
[1766092526367,0.08931283,2807.9,2807.2,4.6205]
[1766092526640,3.56066353,2808.5,2807.4,7.0538]
[1766092526641,0.46438023,2808.2,2807.4,7.0538]
[1766092527042,2.98138023,2808.2,2807.3,0.575]
[1766092527250,2.517,2808.1,2807.3,0.575]
[1766092527632,4.22510213,2808.4,2807.3,0.575]
[1766092527633,4.68944184,2808.4,2807.4,7.0538]
[1766092527820,3.64569306,2808.4,2807.5,4.6205]
[1766092528507,3.07069306,2808.4,2807.5,4.6205]
[1766092528711,3.07069306,2808.4,2807.5,7.0538]
[1766092528939,3.07069306,2808.4,2807.6,0.70538]
[1766092530745,2.517,2808.3,2807.6,0.70538]
[1766092530944,2.517,2808.3,2807.5,0.575]
[1766092532058,2.517,2808.2,2807.5,0.575]
[1766092532633,2.517,2808.2,2807.5,5.1955]
[1766092532963,0.08931283,2808.4,2807.7,4.6205]
[1766092533861,0.08931283,2808.4,2807.8,4.6205]
[1766092534061,0.08931283,2808.4,2807.9,0.575]
[1766092534833,2.517,2808.8,2808.0,7.0538]
[1766092535068,0.46438023,2808.7,2808.1,4.6205]
[1766092535239,2.517,2808.8,2808.1,4.6205]
[1766092535934,0.001,2808.2,2808.1,4.6205]
[1766092536166,0.001,2808.2,2808.1,5.38338]
[1766092537250,0.001,2808.2,2807.9,0.575]
[1766092537454,0.001,2808.2,2807.5,0.405504]
[1766092537455,0.001,2808.2,2808.0,1e-08]
[1766092539467,0.46438023,2808.8,2808.1,4.6205]
[1766092539673,0.46438023,2808.9,2808.1,4.6205]
[1766092539968,2.517,2809.0,2808.2,4.6205]
[1766092540277,2.517,2809.0,2808.3,4.6205]
[1766092540278,2.77763128,2809.0,2808.3,4.6205]
[1766092540485,2.77763128,2809.0,2808.4,0.575]
[1766092541175,6.33761834,2809.0,2808.4,0.575]
[1766092541363,2.77763128,2809.0,2808.4,0.575]
[1766092541676,0.46438023,2809.1,2808.4,5.1955]
[1766092542253,2.98138023,2809.1,2808.4,5.1955]
[1766092542455,0.46438023,2809.1,2808.4,3.0678]
[1766092542643,2.5775,2809.4,2808.6,2.4928]
[1766092542975,2.5775,2809.4,2808.7,4.7561]
[1766092543177,0.001,2809.4,2808.8,7.8239]
[1766092543346,0.001,2809.4,2808.8,3.0678]
[1766092543545,0.001,2809.4,2808.9,4.7561]
[1766092543942,0.001,2809.4,2809.0,2.4928]
[1766092544146,2.5765,2810.4,2809.4,4.7561]
[1766092544346,2.5765,2810.3,2809.5,0.575]
[1766092544783,2.5765,2810.3,2809.5,5.3311]
[1766092544952,2.5765,2810.3,2809.5,7.8239]
[1766092545152,0.25765,2810.2,2809.5,7.8239]
[1766092545349,0.001,2810.5,2809.6,7.2489]
[1766092545582,0.001,2810.5,2809.7,4.7561]
[1766092545863,2.5775,2810.5,2809.8,0.575]
[1766092546379,2.5775,2810.5,2809.8,5.3311]
[1766092546583,0.001,2810.5,2809.9,4.7561]
[1766092547125,0.001,2810.5,2810.1,4.7561]
[1766092547269,0.001,2810.6,2810.3,4.7561]
[1766092549032,2.5765,2811.3,2810.4,2.93388612]
[1766092549202,6.13410204,2811.7,2810.7,7.2489]
[1766092549529,0.6135102,2811.6,2810.8,0.574]
[1766092549716,0.46438023,2811.5,2810.8,0.574]
[1766092549891,3.1900102,2811.6,2810.8,0.574]
[1766092550091,3.04088023,2811.5,2810.8,0.574]
[1766092550317,3.2976095,2811.4,2810.8,1e-08]
[1766092550499,2.5765,2811.3,2810.3,0.46438023]
[1766092550710,2.5765,2811.3,2810.4,0.574]
[1766092550924,2.5765,2811.3,2810.5,0.574]
[1766092552305,2.5775,2811.3,2810.5,0.574]
[1766092552505,0.32986095,2811.2,2810.5,0.574]
[1766092552903,2.5765,2811.1,2810.1,0.405504]
[1766092553109,2.5765,2811.1,2810.2,0.574]
[1766092553343,2.5765,2811.1,2810.0,0.46438023]
[1766092553542,2.5765,2810.9,2810.1,0.574]
[1766092553834,2.5765,2810.9,2810.1,5.3301]
[1766092554129,2.5765,2810.8,2810.1,0.574]
[1766092554634,2.5765,2810.8,2809.6,2.4928]
[1766092554836,2.5765,2810.8,2809.7,0.574]
[1766092555018,2.5765,2810.6,2809.7,0.574]
[1766092555615,2.5765,2810.6,2809.6,0.46438023]
[1766092555818,2.5765,2810.6,2809.7,0.574]
[1766092556028,2.5765,2810.4,2809.4,0.574]
[1766092556636,2.5765,2810.4,2809.5,0.46438023]
[1766092556836,3.55808574,2810.5,2809.4,5.3301]
[1766092556837,3.18995857,2810.3,2809.4,5.3301]
[1766092557336,3.18995857,2810.3,2808.8,2.4928]
[1766092557506,3.18995857,2810.3,2808.9,5.3301]
[1766092557705,3.18995857,2810.3,2809.1,0.405504]
[1766092557922,2.5765,2810.0,2808.9,4.7561]
[1766092558237,2.5765,2809.8,2809.2,0.574]
[1766092558841,2.5765,2809.8,2809.0,0.46438023]
[1766092559035,2.5765,2809.8,2809.2,0.574]
[1766092559934,6.13498011,2810.2,2809.3,7.2489]
[1766092560109,2.5765,2810.1,2809.2,0.574]
[1766092560308,2.5765,2810.0,2809.0,0.46438023]
[1766092560510,2.5765,2810.0,2806.9,0.002]
[1766092560511,2.5765,2809.0,2806.9,0.002]
[1766092560737,9.00180286,2809.1,2807.0,3.79646383]
[1766092560738,2.5765,2808.6,2807.0,3.79646383]
[1766092560938,3.11765,2808.6,2807.5,0.574]
[1766092561139,0.54115,2808.6,2807.6,0.405504]
[1766092561338,0.574,2808.9,2807.6,0.405504]
[1766092561339,2.5765,2808.8,2807.6,0.405504]
[1766092561539,3.0664,2809.1,2807.8,0.405504]
[1766092561947,3.0664,2809.1,2807.6,0.405504]
[1766092562157,3.0664,2809.1,2807.8,0.405504]
[1766092562641,3.0664,2809.1,2808.3,7.0859]
[1766092563952,2.4924,2808.7,2807.6,7.0859]
[1766092564123,2.74164,2808.6,2807.6,7.0859]
[1766092564327,2.74164,2808.6,2807.8,4.6948]
[1766092565064,0.574,2808.7,2808.1,4.6948]
[1766092565356,3.53078023,2809.0,2808.2,4.6948]
[1766092565517,3.53078023,2809.0,2808.3,4.6948]
[1766092565518,0.574,2809.0,2808.3,4.6948]
[1766092565724,0.574,2809.0,2808.3,7.0859]
[1766092565944,3.0664,2809.0,2808.4,0.70859]
[1766092566142,3.0664,2809.0,2808.3,4.6948]
[1766092566562,3.4767,2809.0,2808.1,0.46438023]
[1766092566750,2.4924,2808.8,2808.0,1.04038023]
[1766092566934,2.9027,2808.7,2808.0,0.002]
[1766092567140,2.4924,2808.4,2808.0,0.002]
[1766092567361,0.86427,2808.6,2808.0,0.002]
[1766092568060,3.35667,2808.6,2808.0,0.002]
[1766092569352,3.0664,2808.6,2808.0,0.002]
[1766092569855,2.4924,2808.5,2808.0,0.002]
[1766092570748,0.574,2808.6,2808.0,0.002]
[1766092570951,0.574,2808.6,2808.0,4.6968]
[1766092571572,0.574,2808.6,2808.0,7.0879]
[1766092571871,3.53078023,2809.1,2808.2,7.0859]
[1766092572250,2.4924,2809.1,2808.3,7.0859]
[1766092572650,4.13369002,2809.3,2808.5,5.0977]
[1766092572973,2.587,2809.1,2808.4,0.405504]
[1766092573175,2.587,2809.1,2808.1,5.80649]
[1766092573176,2.9654,2809.1,2808.1,5.80649]
[1766092573397,2.587,2808.7,2808.0,0.002]
[1766092574168,2.587,2808.7,2808.0,5.0997]
[1766092575517,0.574,2808.8,2808.2,5.0977]
[1766092575669,0.001,2809.0,2808.3,2.3746]
[1766092575872,0.001,2809.0,2808.5,2.3746]
[1766092576492,0.001,2809.0,2808.4,0.23746]
[1766092576693,2.587,2808.8,2808.0,0.407504]
[1766092576969,2.587,2808.8,2808.0,2.3766]
[1766092577594,4.7703,2808.9,2808.0,2.3766]
[1766092577898,4.7703,2808.9,2808.2,5.503204]
[1766092578070,4.7703,2808.9,2808.2,6.2911844]
[1766092578270,0.001,2809.0,2808.2,8.6657844]
[1766092578500,0.001,2809.0,2808.3,7.4723]
[1766092579414,0.001,2809.0,2808.3,8.0463]
[1766092580373,4.7703,2808.9,2808.2,0.7879804]
[1766092580572,7.3573,2808.8,2808.1,0.979504]
[1766092580768,0.001,2809.0,2808.1,0.979504]
[1766092580991,7.3573,2809.7,2808.8,7.4723]
[1766092581199,7.3573,2809.7,2808.9,7.4723]
[1766092581500,8.19686802,2809.7,2808.9,7.4723]
[1766092582085,2.587,2809.6,2808.9,7.4723]
[1766092585108,2.587,2809.6,2808.9,8.0463]
[1766092586125,4.7703,2809.5,2808.6,7.4723]
[1766092586301,4.7703,2809.3,2808.4,6.077204]
[1766092586690,7.3573,2809.2,2808.4,6.077204]
[1766092586920,7.3573,2809.2,2808.4,6.079204]
[1766092587521,7.3573,2809.2,2808.4,8.453804]
[1766092587698,0.001,2809.9,2808.7,5.56208023]
[1766092587900,0.001,2809.9,2808.9,0.405504]
[1766092588389,0.001,2809.9,2809.2,7.4723]
[1766092588817,0.001,2809.9,2809.4,5.0977]
[1766092589020,0.001,2809.9,2809.6,5.0977]
[1766092589799,0.001,2809.9,2809.2,6.077204]
[1766092590015,0.001,2809.9,2809.2,8.451804]
[1766092590422,0.001,2810.2,2809.2,0.979504]
[1766092590610,0.001,2810.2,2809.4,2.3746]
[1766092590926,0.001,2810.2,2809.7,7.877804]
[1766092591220,0.001,2810.2,2809.8,5.0977]
[1766092591423,0.001,2810.2,2809.7,0.979504]
[1766092591924,0.001,2810.2,2809.7,0.574]
[1766092592094,2.588,2810.2,2809.7,0.574]
[1766092592290,3.32383,2810.2,2809.7,0.574]
[1766092592932,3.32383,2810.2,2809.4,2.780104]
[1766092593113,2.587,2810.1,2809.5,0.574]
[1766092593435,7.3573,2810.1,2809.5,0.574]
[1766092595347,4.7703,2809.7,2808.7,2.3746]
[1766092595500,2.587,2809.5,2808.8,1.03738023]
[1766092595699,4.7703,2809.3,2808.5,0.8453804]
[1766092595903,7.3573,2809.3,2808.5,5.6707]
[1766092596105,7.3573,2809.3,2808.6,0.405504]
[1766092596304,7.3573,2809.3,2808.6,0.86988423]
[1766092596736,7.3573,2809.3,2808.5,5.6707]
[1766092596737,2.587,2809.0,2808.4,0.575]
[1766092596936,2.587,2809.0,2808.5,0.405504]
[1766092598014,3.5594625,2809.5,2808.5,5.503204]
[1766092598338,7.3573,2809.1,2808.5,0.405504]
[1766092598718,5.18354625,2809.4,2808.5,0.405504]
[1766092598913,7.77054625,2809.4,2808.5,7.877804]
[1766092599440,12.56074856,2809.9,2808.8,2.3746]
[1766092599441,2.587,2809.8,2808.8,2.3746]
[1766092599612,0.46438023,2809.7,2809.0,5.0977]
[1766092599942,2.587,2809.8,2809.1,0.03559859]
[1766092600106,2.587,2809.8,2809.2,0.405504]
[1766092600305,7.3583,2810.2,2809.3,7.4723]
[1766092600637,7.3583,2810.2,2809.4,5.0977]
[1766092602106,0.001,2809.9,2809.4,5.0977]
[1766092602309,0.001,2809.9,2809.2,0.9558244]
[1766092602619,2.588,2809.9,2809.2,0.573]
[1766092602935,2.588,2809.9,2809.2,8.1955]
[1766092603307,0.001,2809.9,2809.3,5.1321]
[1766092603703,0.001,2809.9,2809.2,3.0634]
[1766092603704,0.001,2809.9,2809.2,0.573]
[1766092603909,7.8294,2809.9,2809.2,0.573]
[1766092604110,8.61234,2809.9,2809.2,0.573]
[1766092604544,0.001,2809.9,2809.2,0.573]
[1766092604751,0.001,2809.9,2809.3,5.1321]
[1766092606940,0.001,2809.9,2809.2,3.0634]
[1766092607170,0.001,2809.9,2809.2,8.1955]
[1766092607952,0.001,2809.9,2809.2,0.573]
[1766092608140,0.001,2809.9,2809.3,2.4904]
[1766092608320,0.001,2809.9,2809.4,7.92884]
[1766092608821,0.001,2809.9,2809.5,7.6225]
[1766092609145,0.001,2809.9,2809.5,2.4904]
[1766092612354,0.001,2809.9,2809.5,7.6225]
[1766092613259,2.6134,2809.8,2809.0,5.537604]
[1766092613421,0.001,2809.9,2809.1,0.405504]
[1766092613749,0.001,2809.9,2809.2,5.1321]
[1766092613954,0.001,2809.9,2809.4,7.6225]
[1766092616355,0.001,2809.9,2809.4,5.1321]
[1766092616558,0.001,2809.9,2809.1,0.405504]
[1766092616559,5.99894,2809.9,2809.1,0.573]
[1766092616758,5.99894,2809.9,2809.1,5.7051]
[1766092616759,2.6134,2809.8,2809.1,5.7051]
[1766092616959,2.6134,2809.8,2809.1,8.1955]
[1766092617254,2.6134,2809.8,2809.1,0.573]
[1766092617434,0.78394,2809.9,2809.2,7.6225]
[1766092617435,0.339734,2809.7,2809.2,7.6225]
[1766092617647,0.78394,2809.9,2809.2,7.6225]
[1766092617863,0.001,2810.2,2809.2,7.6225]
[1766092617864,0.001,2810.2,2809.3,5.1321]
[1766092618042,2.6134,2810.8,2810.0,5.537604]
[1766092618267,0.08931283,2810.9,2810.2,0.405504]
[1766092618441,0.08931283,2810.9,2810.3,0.405504]
[1766092618830,2.6134,2810.4,2808.8,3.5601236]
[1766092619036,2.6134,2810.2,2809.2,0.405504]
[1766092619238,2.6134,2810.2,2809.5,0.405504]
[1766092619443,2.6134,2810.2,2809.7,0.86988423]
[1766092620171,0.001,2811.1,2810.1,0.405504]
[1766092620336,0.001,2811.1,2810.4,0.405504]
[1766092620337,7.8294,2811.1,2810.4,0.405504]
[1766092620528,2.6144,2811.1,2810.5,0.0183927]
[1766092620738,0.001,2811.1,2810.4,8.601004]
[1766092620976,0.001,2811.1,2810.4,9.4611044]
[1766092621153,0.001,2811.1,2810.5,5.1321]
[1766092621789,0.001,2811.1,2810.4,1.4331004]
[1766092622095,0.001,2811.7,2810.9,3.96304583]
[1766092622380,0.001,2811.8,2811.4,0.405504]
[1766092622670,0.001,2812.2,2811.4,8.690204]
[1766092622980,7.4785,2811.7,2811.2,0.405504]
[1766092623668,0.573,2812.0,2810.6,2.6148]
[1766092623669,5.0605,2811.5,2810.6,2.6148]
[1766092623874,0.46438023,2811.9,2810.7,0.405504]
[1766092623875,7.4785,2811.3,2810.7,0.405504]
[1766092624085,7.4785,2811.3,2810.5,5.0969]
[1766092624237,7.4785,2811.3,2810.3,3.1878]
[1766092624238,2.418,2811.1,2810.4,0.405504]
[1766092624437,7.4785,2811.1,2810.3,3.1878]
[1766092624667,2.418,2811.0,2809.8,0.46438023]
[1766092624870,2.418,2811.0,2810.0,8.2847]
[1766092625080,7.4785,2810.9,2810.1,0.405504]
[1766092625282,7.4785,2810.9,2810.1,1.2745244]
[1766092625439,2.418,2810.9,2810.1,8.9862244]
[1766092625634,0.573,2811.1,2810.3,0.405504]
[1766092625838,7.94288023,2811.2,2810.4,8.117204]
[1766092626053,2.418,2811.2,2810.4,8.117204]
[1766092626252,2.76353802,2811.2,2810.4,8.117204]
[1766092626668,0.46438023,2811.1,2810.4,5.502404]
[1766092626889,2.418,2811.0,2810.4,0.405504]
[1766092627387,7.4785,2811.0,2810.4,0.405504]
[1766092627956,2.418,2811.0,2810.4,0.405504]
[1766092628396,0.573,2811.4,2810.5,7.7117]
[1766092628593,0.001,2811.8,2810.7,5.502404]
[1766092628773,0.001,2811.8,2811.1,0.405504]
[1766092629289,2.418,2811.7,2810.7,0.405504]
[1766092629491,2.418,2811.3,2810.7,0.978504]
[1766092629788,1.03738023,2811.6,2810.9,8.117204]
[1766092629990,0.46438023,2811.6,2810.9,8.117204]
[1766092630192,0.46438023,2811.6,2810.9,0.405504]
[1766092630490,2.418,2811.5,2810.8,0.405504]
[1766092630850,2.418,2811.5,2810.9,0.8690204]
[1766092631053,5.52488023,2811.7,2810.9,5.9659204]
[1766092631253,5.0605,2811.3,2810.1,3.55848846]
[1766092631479,5.0605,2811.3,2810.5,5.0969]
[1766092631480,7.4785,2811.3,2810.5,5.0969]
[1766092631651,5.0605,2811.3,2809.9,5.56128023]
[1766092631851,0.573,2811.4,2810.1,0.46438023]
[1766092631852,5.0605,2811.1,2810.1,0.46438023]
[1766092632056,0.46438023,2811.6,2810.2,0.405504]
[1766092632057,8.0515,2811.0,2810.2,0.405504]
[1766092632263,0.573,2811.0,2810.0,8.2847]
[1766092632465,2.5215,2810.8,2810.0,0.573]
[1766092632671,5.3018,2810.8,2810.0,0.573]
[1766092632984,7.8233,2810.8,2810.0,0.573]
[1766092633381,7.8233,2810.7,2810.0,0.573]
[1766092634151,7.1136404,2811.5,2810.1,0.405504]
[1766092634457,2.5215,2810.9,2810.1,0.405504]
[1766092634781,7.8233,2810.9,2810.1,0.405504]
[1766092635388,7.8233,2810.9,2810.0,8.2613]
[1766092635389,0.46438023,2810.8,2809.8,5.1648]
[1766092635689,0.46438023,2810.8,2809.7,0.573]
[1766092635862,0.29858802,2810.7,2809.8,7.6883]
[1766092636185,2.82008802,2810.7,2809.9,0.405504]
[1766092636584,0.573,2811.0,2810.1,0.405504]
[1766092636771,0.573,2811.0,2810.1,7.6883]
[1766092636970,0.46438023,2811.1,2810.3,7.6883]
[1766092637288,0.46438023,2811.1,2810.3,8.2613]
[1766092637582,0.46438023,2811.1,2810.3,0.573]
[1766092637784,2.5215,2810.9,2810.3,0.573]
[1766092637994,0.46438023,2811.3,2810.4,2.5235]
[1766092638195,4.02151351,2811.3,2810.4,7.6883]
[1766092638786,8.28768023,2811.3,2810.4,7.6883]
[1766092638961,0.46438023,2811.1,2810.4,7.6883]
[1766092639361,1.648857,2811.1,2810.4,7.6883]
[1766092641159,0.46438023,2811.0,2810.4,7.6883]
[1766092641392,7.8233,2811.0,2810.4,0.405504]
[1766092641983,2.5215,2810.7,2810.3,0.002]
[1766092642194,8.07545,2810.6,2809.9,0.978504]
[1766092642385,8.07545,2810.6,2809.9,0.573]
[1766092642968,2.5215,2810.9,2810.0,5.570304]
[1766092643288,2.5215,2810.9,2809.9,0.573]
[1766092643289,2.5215,2810.9,2810.2,0.405504]
[1766092643799,5.8748,2811.0,2810.3,5.1648]
[1766092644005,1.18447677,2811.1,2810.3,5.1648]
[1766092644216,9.32338494,2811.2,2810.4,7.6883]
[1766092644372,0.46438023,2811.0,2810.2,0.405504]
[1766092644565,2.98588023,2811.0,2810.2,0.405504]
[1766092644969,2.5215,2810.8,2809.8,2.5235]
[1766092645170,2.5215,2810.9,2809.8,1.03638023]
[1766092645389,7.8233,2810.7,2810.0,0.405504]
[1766092645587,7.8233,2810.7,2809.9,0.66066842]
[1766092645588,2.5215,2810.6,2809.9,0.405504]
[1766092646303,8.48839613,2810.8,2810.0,7.6883]
[1766092646872,2.5215,2810.7,2810.0,7.6883]
[1766092647479,2.5215,2810.7,2810.1,0.405504]
[1766092648484,2.5215,2810.7,2810.1,0.407504]
[1766092648683,2.5215,2810.5,2810.1,0.002]
[1766092648916,5.3018,2810.6,2809.8,8.665804]
[1766092649288,7.8233,2810.6,2809.8,8.665804]
[1766092649816,7.8233,2810.4,2809.8,0.977504]
[1766092650204,0.66131283,2810.6,2809.8,0.405504]
[1766092650404,0.72708799,2810.5,2809.7,8.665804]
[1766092651423,8.55038799,2810.5,2809.7,8.665804]
[1766092652022,0.66131283,2810.6,2809.8,7.6883]
[1766092652259,3.18281283,2810.6,2809.8,7.6883]
[1766092652525,2.61081283,2810.6,2809.8,7.6883]
[1766092653690,0.08931283,2810.6,2809.9,2.96459245]
[1766092653886,7.8233,2810.8,2810.0,5.1648]
[1766092654124,0.001,2811.1,2810.1,0.405504]
[1766092654428,0.001,2811.8,2811.2,5.1648]
[1766092654727,0.001,2812.1,2810.2,0.03558465]
[1766092654728,0.001,2812.1,2811.0,1.03638023]
[1766092654896,0.001,2812.1,2810.0,1.06918138]
[1766092654897,7.8233,2811.7,2811.2,0.405504]
[1766092655302,7.8233,2811.7,2810.3,3.55826263]
[1766092655527,7.8233,2812.0,2811.1,0.405504]
[1766092655715,7.8233,2812.0,2811.2,7.6883]
[1766092656035,0.573,2812.1,2811.2,7.6883]
[1766092656336,0.001,2812.1,2811.5,8.093804]
[1766092656633,7.8233,2812.0,2811.1,0.977504]
[1766092657136,2.5215,2811.9,2811.1,1.89052242]
[1766092657638,7.8233,2811.9,2811.1,1.89052242]
[1766092658214,5.3018,2811.8,2811.1,1.89052242]
[1766092658535,2.5215,2811.7,2811.1,1.89052242]
[1766092658742,2.5215,2811.7,2811.1,1.31852242]
[1766092658928,7.8233,2811.7,2811.0,0.405504]
[1766092660337,2.5215,2811.6,2810.9,5.1648]
[1766092660540,5.3018,2811.6,2810.8,0.572]
[1766092660706,2.5215,2811.5,2810.9,0.405504]
[1766092660900,7.8233,2811.5,2810.8,0.572]
[1766092661137,5.3018,2811.5,2810.8,0.572]
[1766092661304,2.5215,2811.4,2810.8,1.48501842]
[1766092662850,5.1294,2811.0,2810.0,2.5676]
[1766092663050,7.5855,2810.6,2809.8,0.574]
[1766092663220,2.4561,2810.8,2809.9,7.6233]
[1766092663424,7.5855,2810.9,2810.0,3.792834]
[1766092663636,0.572,2811.0,2809.9,0.46438023]
[1766092663824,2.4561,2810.9,2809.8,0.002]
[1766092664023,4.12945286,2811.0,2809.8,0.002]
[1766092664024,5.1294,2810.7,2809.8,0.002]
[1766092664363,7.5855,2810.7,2809.8,0.002]
[1766092664532,0.572,2811.0,2809.9,2.5676]
[1766092664731,3.0281,2811.0,2810.0,7.88026]
[1766092664939,8.1575,2811.0,2810.1,0.572]
[1766092665875,8.1575,2811.0,2810.2,0.405504]
[1766092666077,2.4561,2810.9,2810.2,0.405504]
[1766092666355,0.572,2811.0,2810.2,0.405504]
[1766092666356,2.4561,2810.7,2810.2,0.405504]
[1766092666558,5.1294,2810.8,2810.2,0.405504]
[1766092667555,8.75699671,2810.8,2810.2,0.405504]
[1766092668166,7.5855,2810.7,2810.1,0.572]